Workbook

Sheet Sheet1
D1: ※薄黄色のセルに入力してください。年齢は自動計算されます。 誕生日と身長測定日は日付形式で入力してください。
B2: 名前 | C2: ○○ | D2: ※データは6行目(C6,D6)から、行を飛ばさず入力してください。D列が空白の行までデータを読み込みます。
B3: 誕生日 | N3: 成長曲線グラフ作成用データ | T3: 成長速度曲線グラフ作成用データ | Y3: 参考データ | AG3: 現在身長から最終身長を推計(早熟さ未考慮)
I4: このボタンを押すと、D,E列のデータを基に、 | T4: １年間の身長の伸び | Y4: 女性のデータ | AC4: １年間の身長の伸び | AG4: 5.8 | AH4: 171.5 | AJ4: PHA:前年からの身長の伸びが最も高い年齢
C5: 身長測定日 | D5: 身長 | E5: 年齢 | I5: O列にグラフ用の1ヶ月毎のデータが作成されます。 | M5: 年齢 | N5: 年齢 | O5: =$C$2 -> ○○ | P5: 日本男子平均 | Q5: 平均+2σ | R5: 平均-2σ | Y5: 日本女子平均 | Z5: 平均+2σ | AA5: 平均-2σ | AG5: 偏差値 | AH5: 予想身長
E6: =IF(C6="","",YEARFRAC($C$3,C6,1)) ->  | M6: =INT(N6)&"歳"&ROUND(MOD(N6*12,12),0)& "ヶ月" -> 0歳0ヶ月 | N6: 0.001 | P6: 49 | Q6: 53.2 | R6: 44.8 | Y6: 48.4 | Z6: 52.6 | AA6: 44.2 | AG6: =IF(O6="","",50+(O6-P6)/(Q6-P6)*20) ->  | AH6: =IF(AG6="","",AH$4+(AG6-50)/10*AG$4) ->  | AJ6: 早熟度(月) | AK6: 0
E7: =IF(C7="","",YEARFRAC($C$3,C7,1)) ->  | M7: =INT(N7)&"歳"&ROUND(MOD(N7*12,12),0)& "ヶ月" -> 0歳1ヶ月 | N7: =N6+1/12 -> 0.08433333333 | P7: 53.5 | Q7: 57.9 | R7: 49.1 | Y7: 52.6 | Z7: 56.8 | AA7: 48.4 | AG7: =IF(O7="","",50+(O7-P7)/(Q7-P7)*20) ->  | AH7: =IF(AG7="","",AH$4+(AG7-50)/10*AG$4) ->  | AK7: ↑13歳にPHAとなる人を0とする。
M8: 0歳2ヶ月 | N8: =N7+1/12 -> 0.1676666667 | P8: 57.9 | Q8: 62.3 | R8: 53.5 | Y8: 56.7 | Z8: 61.1 | AA8: 52.3 | AD8: 成長速度の別データ | AK8: １年早熟(PHAが12歳)なら、-12と入力。
M9: 0歳3ヶ月 | N9: 0.251 | P9: 61.4 | Q9: 65.8 | R9: 57 | Y9: 60 | Z9: 64.4 | AA9: 55.6 | AD9: 3ヶ月の伸びの4倍なので初期がかなり違う。 | AK9: １年晩熟(PHAが14歳)なら、+12と入力。
M10: 0歳4ヶ月 | N10: 0.3343333333 | P10: 64.2 | Q10: 68.8 | R10: 59.6 | Y10: 62.6 | Z10: 67 | AA10: 58.2 | AD10: スムーズに丸めた曲線に。 | AK10: １月単位で整数値で入力する。
M11: 0歳5ヶ月 | N11: 0.4176666667 | P11: 66.2 | Q11: 70.8 | R11: 61.6 | Y11: 64.6 | Z11: 69.2 | AA11: 60 | AD11: 男性 | AE11: 女性
M12: 0歳6ヶ月 | N12: 0.501 | P12: 67.8 | Q12: 72.6 | R12: 63 | Y12: 66.2 | Z12: 70.8 | AA12: 61.6 | AD12: 25.7 | AE12: 25 | AJ12: けっこう、適当に設定してます。
M13: 0歳7ヶ月 | N13: 0.5843333333 | P13: 69.2 | Q13: 74 | R13: 64.4 | Y13: 67.5 | Z13: 72.1 | AA13: 62.9 | AD13: 23.35864198 | AE13: 22.93621399 | AJ13: ８歳から１６歳まで数式いれています。
M14: 0歳8ヶ月 | N14: 0.6676666667 | P14: 70.5 | Q14: 75.3 | R14: 65.7 | Y14: 68.9 | Z14: 73.7 | AA14: 64.1 | AD14: 20.58024691 | AE14: 20.43786008 | AJ14: 早熟度(月)は、-18(1歳半早熟)から+24(2歳晩熟)までは大丈夫なはず。
M15: 0歳9ヶ月 | N15: 0.751 | P15: 71.7 | Q15: 76.7 | R15: 66.7 | Y15: 70 | Z15: 74.8 | AA15: 65.2 | AD15: 17.7 | AE15: 17.8
M16: 0歳10ヶ月 | N16: 0.8343333333 | P16: 72.8 | Q16: 77.8 | R16: 67.8 | Y16: 71.2 | Z16: 76 | AA16: 66.4 | AD16: 16.26419753 | AE16: 16.18271605
M17: 0歳11ヶ月 | N17: 0.9176666667 | P17: 73.9 | Q17: 78.9 | R17: 68.9 | T17: 年齢 | U17: =$C$2 -> ○○ | V17: 日本男子平均 | W17: モデル | Y17: 72.3 | Z17: 77.3 | AA17: 67.3 | AC17: 日本女子平均 | AD17: 15.01358025 | AE17: 14.71728395
M18: 1歳0ヶ月 | N18: 1.001 | P18: 75 | Q18: 80.2 | R18: 69.8 | T18: =N18 -> 1.001 | U18: =IF(OR(O6="",O18=""),NA(),O18-O6) ->  | V18: 26 | Y18: 73.4 | Z18: 78.4 | AA18: 68.4 | AC18: =Y18-Y6 -> 25 | AD18: 13.9 | AE18: 13.4
M19: 1歳1ヶ月 | N19: 1.084333333 | P19: 76 | Q19: 81.2 | R19: 70.8 | T19: =N19 -> 1.084333333 | U19: =IF(OR(O7="",O19=""),NA(),O19-O7) ->  | V19: 22.5 | Y19: 74.5 | Z19: 79.5 | AA19: 69.5 | AC19: =Y19-Y7 -> 21.9 | AD19: 13.09753086 | AE19: 12.70740741
M20: 1歳2ヶ月 | N20: 1.167666667 | P20: 76.9 | Q20: 82.1 | R20: 71.7 | T20: 1.167666667 | V20: 19 | Y20: 75.5 | Z20: 80.7 | AA20: 70.3 | AC20: 18.8 | AD20: 12.3691358 | AE20: 12.12037037
M21: 1歳3ヶ月 | N21: 1.251 | P21: 77.8 | Q21: 83.2 | R21: 72.4 | T21: 1.251 | V21: 16.4 | Y21: 76.5 | Z21: 81.7 | AA21: 71.3 | AC21: 16.5 | AD21: 11.7 | AE21: 11.6
M22: 1歳4ヶ月 | N22: 1.334333333 | P22: 78.7 | Q22: 84.1 | R22: 73.3 | T22: 1.334333333 | V22: 14.5 | Y22: 77.5 | Z22: 82.7 | AA22: 72.3 | AC22: 14.9 | AD22: 11.19382716 | AE22: 11.14135802
M23: 1歳5ヶ月 | N23: 1.417666667 | P23: 79.6 | Q23: 85.2 | R23: 74 | T23: 1.417666667 | V23: 13.4 | Y23: 78.4 | Z23: 83.8 | AA23: 73 | AC23: 13.8 | AD23: 10.72839506 | AE23: 10.70864198
M24: 1歳6ヶ月 | N24: 1.501 | P24: 80.5 | Q24: 86.1 | R24: 74.9 | T24: 1.501 | V24: 12.7 | Y24: 79.4 | Z24: 84.8 | AA24: 74 | AC24: 13.2 | AD24: 10.3 | AE24: 10.3
M25: 1歳7ヶ月 | N25: 1.584333333 | P25: 81.4 | Q25: 87 | R25: 75.8 | T25: 1.584333333 | V25: 12.2 | Y25: 80.3 | Z25: 85.9 | AA25: 74.7 | AC25: 12.8 | AD25: 10.01234568 | AE25: 9.980246914
M26: 1歳8ヶ月 | N26: 1.667666667 | P26: 82.3 | Q26: 88.1 | R26: 76.5 | T26: 1.667666667 | V26: 11.8 | Y26: 81.2 | Z26: 86.8 | AA26: 75.6 | AC26: 12.3 | AD26: 9.748765432 | AE26: 9.680864198
M27: 1歳9ヶ月 | N27: 1.751 | P27: 83.1 | Q27: 88.9 | R27: 77.3 | T27: 1.751 | V27: 11.4 | Y27: 82 | Z27: 87.6 | AA27: 76.4 | AC27: 12 | AD27: 9.5 | AE27: 9.4
M28: 1歳10ヶ月 | N28: 1.834333333 | P28: 83.9 | Q28: 89.7 | R28: 78.1 | T28: 1.834333333 | V28: 11.1 | Y28: 82.8 | Z28: 88.6 | AA28: 77 | AC28: 11.6 | AD28: 9.258641975 | AE28: 9.185802469
M29: 1歳11ヶ月 | N29: 1.917666667 | P29: 84.7 | Q29: 90.7 | R29: 78.7 | T29: 1.917666667 | V29: 10.8 | Y29: 83.5 | Z29: 89.3 | AA29: 77.7 | AC29: 11.2 | AD29: 9.024691358 | AE29: 8.986419753
M30: 2歳0ヶ月 | N30: 2.001 | P30: 85.4 | Q30: 91.4 | R30: 79.4 | T30: 2.001 | V30: 10.4 | Y30: 84.3 | Z30: 90.1 | AA30: 78.5 | AC30: 10.9 | AD30: 8.8 | AE30: 8.8
M31: 2歳1ヶ月 | N31: 2.084333333 | P31: 86.2 | Q31: 92.4 | R31: 80 | T31: 2.084333333 | V31: 10.2 | Y31: 85 | Z31: 91 | AA31: 79 | AC31: 10.5 | AD31: 8.622222222 | AE31: 8.660493827
M32: 2歳2ヶ月 | N32: 2.167666667 | P32: 86.9 | Q32: 93.1 | R32: 80.7 | T32: 2.167666667 | V32: 10 | Y32: 85.7 | Z32: 91.7 | AA32: 79.7 | AC32: 10.2 | AD32: 8.455555556 | AE32: 8.528395062
M33: 2歳3ヶ月 | N33: 2.251 | P33: 87.6 | Q33: 93.8 | R33: 81.4 | T33: 2.251 | V33: 9.8 | Y33: 86.4 | Z33: 92.4 | AA33: 80.4 | AC33: 9.9 | AD33: 8.3 | AE33: 8.4
E34: =IF(C34="","",YEARFRAC($C$3,C34,1)) ->  | M34: 2歳4ヶ月 | N34: 2.334333333 | P34: 88.3 | Q34: 94.7 | R34: 81.9 | T34: 2.334333333 | V34: 9.6 | Y34: 87.1 | Z34: 93.3 | AA34: 80.9 | AC34: 9.6 | AD34: 8.19382716 | AE34: 8.264197531
M35: 2歳5ヶ月 | N35: 2.417666667 | P35: 88.9 | Q35: 95.3 | R35: 82.5 | T35: 2.417666667 | V35: 9.3 | Y35: 87.7 | Z35: 93.9 | AA35: 81.5 | AC35: 9.3 | AD35: 8.095061728 | AE35: 8.130246914
M36: 2歳6ヶ月 | N36: 2.501 | P36: 89.6 | Q36: 96 | R36: 83.2 | T36: 2.501 | V36: 9.1 | Y36: 88.4 | Z36: 94.6 | AA36: 82.2 | AC36: 9 | AD36: 8 | AE36: 8
M37: 2歳7ヶ月 | N37: 2.584333333 | P37: 90.2 | Q37: 96.8 | R37: 83.6 | T37: 2.584333333 | V37: 8.8 | Y37: 89 | Z37: 95.4 | AA37: 82.6 | AC37: 8.7 | AD37: 7.897530864 | AE37: 7.89691358
M38: 2歳8ヶ月 | N38: 2.667666667 | P38: 90.8 | Q38: 97.4 | R38: 84.2 | T38: 2.667666667 | V38: 8.5 | Y38: 89.6 | Z38: 96 | AA38: 83.2 | AC38: 8.4 | AD38: 7.79691358 | AE38: 7.797530864
M39: 2歳9ヶ月 | N39: 2.751 | P39: 91.5 | Q39: 98.1 | R39: 84.9 | T39: 2.751 | V39: 8.4 | Y39: 90.3 | Z39: 96.9 | AA39: 83.7 | AC39: 8.3 | AD39: 7.7 | AE39: 7.7
M40: 2歳10ヶ月 | N40: 2.834333333 | P40: 92.1 | Q40: 98.9 | R40: 85.3 | T40: 2.834333333 | V40: 8.2 | Y40: 90.9 | Z40: 97.5 | AA40: 84.3 | AC40: 8.1 | AD40: 7.630246914 | AE40: 7.597530864
M41: 2歳11ヶ月 | N41: 2.917666667 | P41: 92.7 | Q41: 99.5 | R41: 85.9 | T41: 2.917666667 | V41: 8 | Y41: 91.6 | Z41: 98.2 | AA41: 85 | AC41: 8.1 | AD41: 7.564197531 | AE41: 7.49691358
M42: 3歳0ヶ月 | N42: 3.001 | P42: 93.3 | Q42: 100.3 | R42: 86.3 | T42: 3.001 | V42: 7.9 | Y42: 92.2 | Z42: 99 | AA42: 85.4 | AC42: 7.9 | AD42: 7.5 | AE42: 7.4
M43: 3歳1ヶ月 | N43: 3.084333333 | P43: 94 | Q43: 101 | R43: 87 | T43: 3.084333333 | V43: 7.8 | Y43: 92.8 | Z43: 99.6 | AA43: 86 | AC43: 7.8 | AD43: 7.433333333 | AE43: 7.327777778
M44: 3歳2ヶ月 | N44: 3.167666667 | P44: 94.6 | Q44: 101.6 | R44: 87.6 | T44: 3.167666667 | V44: 7.7 | Y44: 93.5 | Z44: 100.3 | AA44: 86.7 | AC44: 7.8 | AD44: 7.366666667 | AE44: 7.261111111
M45: 3歳3ヶ月 | N45: 3.251 | P45: 95.1 | Q45: 102.3 | R45: 87.9 | T45: 3.251 | V45: 7.5 | Y45: 94.1 | Z45: 101.1 | AA45: 87.1 | AC45: 7.7 | AD45: 7.3 | AE45: 7.2
M46: 3歳4ヶ月 | N46: 3.334333333 | P46: 95.7 | Q46: 102.9 | R46: 88.5 | T46: 3.334333333 | V46: 7.4 | Y46: 94.7 | Z46: 101.7 | AA46: 87.7 | AC46: 7.6 | AD46: 7.230864198 | AE46: 7.163580247
M47: 3歳5ヶ月 | N47: 3.417666667 | P47: 96.3 | Q47: 103.5 | R47: 89.1 | T47: 3.417666667 | V47: 7.4 | Y47: 95.3 | Z47: 102.3 | AA47: 88.3 | AC47: 7.6 | AD47: 7.163580247 | AE47: 7.130864198
M48: 3歳6ヶ月 | N48: 3.501 | P48: 96.9 | Q48: 104.3 | R48: 89.5 | T48: 3.501 | V48: 7.3 | Y48: 95.9 | Z48: 103.1 | AA48: 88.7 | AC48: 7.5 | AD48: 7.1 | AE48: 7.1
M49: 3歳7ヶ月 | N49: 3.584333333 | P49: 97.5 | Q49: 104.9 | R49: 90.1 | T49: 3.584333333 | V49: 7.3 | Y49: 96.5 | Z49: 103.7 | AA49: 89.3 | AC49: 7.5 | AD49: 7.063580247 | AE49: 7.066666667
M50: 3歳8ヶ月 | N50: 3.667666667 | P50: 98 | Q50: 105.4 | R50: 90.6 | T50: 3.667666667 | V50: 7.2 | Y50: 97.1 | Z50: 104.3 | AA50: 89.9 | AC50: 7.5 | AD50: 7.030864198 | AE50: 7.033333333
M51: 3歳9ヶ月 | N51: 3.751 | P51: 98.6 | Q51: 106.2 | R51: 91 | T51: 3.751 | V51: 7.1 | Y51: 97.7 | Z51: 105.1 | AA51: 90.3 | AC51: 7.4 | AD51: 7 | AE51: 7
M52: 3歳10ヶ月 | N52: 3.834333333 | P52: 99.1 | Q52: 106.7 | R52: 91.5 | T52: 3.834333333 | V52: 7 | Y52: 98.3 | Z52: 105.7 | AA52: 90.9 | AC52: 7.4 | AD52: 6.969135802 | AE52: 6.966666667
M53: 3歳11ヶ月 | N53: 3.917666667 | P53: 99.7 | Q53: 107.5 | R53: 91.9 | T53: 3.917666667 | V53: 7 | Y53: 98.9 | Z53: 106.5 | AA53: 91.3 | AC53: 7.3 | AD53: 6.936419753 | AE53: 6.933333333
M54: 4歳0ヶ月 | N54: 4.001 | P54: 100.2 | Q54: 108 | R54: 92.4 | T54: 4.001 | V54: 6.9 | Y54: 99.5 | Z54: 107.1 | AA54: 91.9 | AC54: 7.3 | AD54: 6.9 | AE54: 6.9
M55: 4歳1ヶ月 | N55: 4.084333333 | P55: 100.8 | Q55: 108.6 | R55: 93 | T55: 4.084333333 | V55: 6.8 | Y55: 100 | Z55: 107.6 | AA55: 92.4 | AC55: 7.2 | AD55: 6.833950617 | AE55: 6.866666667
M56: 4歳2ヶ月 | N56: 4.167666667 | P56: 101.3 | Q56: 109.3 | R56: 93.3 | T56: 4.167666667 | V56: 6.7 | Y56: 100.6 | Z56: 108.4 | AA56: 92.8 | AC56: 7.1 | AD56: 6.766049383 | AE56: 6.833333333
M57: 4歳3ヶ月 | N57: 4.251 | P57: 101.9 | Q57: 109.9 | R57: 93.9 | T57: 4.251 | V57: 6.8 | Y57: 101.2 | Z57: 109 | AA57: 93.4 | AC57: 7.1 | AD57: 6.7 | AE57: 6.8
M58: 4歳4ヶ月 | N58: 4.334333333 | P58: 102.4 | Q58: 110.4 | R58: 94.4 | T58: 4.334333333 | V58: 6.7 | Y58: 101.7 | Z58: 109.5 | AA58: 93.9 | AC58: 7 | AD58: 6.663580247 | AE58: 6.766666667
M59: 4歳5ヶ月 | N59: 4.417666667 | P59: 103 | Q59: 111.2 | R59: 94.8 | T59: 4.417666667 | V59: 6.7 | Y59: 102.3 | Z59: 110.3 | AA59: 94.3 | AC59: 7 | AD59: 6.630864198 | AE59: 6.733333333
M60: 4歳6ヶ月 | N60: 4.501 | P60: 103.5 | Q60: 111.7 | R60: 95.3 | T60: 4.501 | V60: 6.6 | Y60: 102.8 | Z60: 110.8 | AA60: 94.8 | AC60: 6.9 | AD60: 6.6 | AE60: 6.7
M61: 4歳7ヶ月 | N61: 4.584333333 | P61: 104 | Q61: 112.2 | R61: 95.8 | T61: 4.584333333 | V61: 6.5 | Y61: 103.4 | Z61: 111.4 | AA61: 95.4 | AC61: 6.9 | AD61: 6.569135802 | AE61: 6.666666667
M62: 4歳8ヶ月 | N62: 4.667666667 | P62: 104.6 | Q62: 113 | R62: 96.2 | T62: 4.667666667 | V62: 6.6 | Y62: 103.9 | Z62: 112.1 | AA62: 95.7 | AC62: 6.8 | AD62: 6.536419753 | AE62: 6.633333333
M63: 4歳9ヶ月 | N63: 4.751 | P63: 105.1 | Q63: 113.5 | R63: 96.7 | T63: 4.751 | V63: 6.5 | Y63: 104.5 | Z63: 112.7 | AA63: 96.3 | AC63: 6.8 | AD63: 6.5 | AE63: 6.6
M64: 4歳10ヶ月 | N64: 4.834333333 | P64: 105.6 | Q64: 114.2 | R64: 97 | T64: 4.834333333 | V64: 6.5 | Y64: 105 | Z64: 113.2 | AA64: 96.8 | AC64: 6.7 | AD64: 6.433950617 | AE64: 6.566666667
M65: 4歳11ヶ月 | N65: 4.917666667 | P65: 106.2 | Q65: 114.8 | R65: 97.6 | T65: 4.917666667 | V65: 6.5 | Y65: 105.6 | Z65: 114 | AA65: 97.2 | AC65: 6.7 | AD65: 6.366049383 | AE65: 6.533333333
M66: 5歳0ヶ月 | N66: 5.001 | P66: 106.7 | Q66: 115.3 | R66: 98.1 | T66: 5.001 | V66: 6.5 | Y66: 106.2 | Z66: 114.6 | AA66: 97.8 | AC66: 6.7 | AD66: 6.3 | AE66: 6.5
M67: 5歳1ヶ月 | N67: 5.084333333 | P67: 107.3 | Q67: 116.1 | R67: 98.5 | T67: 5.084333333 | V67: 6.5 | Y67: 106.7 | Z67: 115.3 | AA67: 98.1 | AC67: 6.7 | AD67: 6.263580247 | AE67: 6.466666667
M68: 5歳2ヶ月 | N68: 5.167666667 | P68: 107.8 | Q68: 116.6 | R68: 99 | T68: 5.167666667 | V68: 6.5 | Y68: 107.3 | Z68: 115.9 | AA68: 98.7 | AC68: 6.7 | AD68: 6.230864198 | AE68: 6.433333333
M69: 5歳3ヶ月 | N69: 5.251 | P69: 108.3 | Q69: 117.1 | R69: 99.5 | T69: 5.251 | V69: 6.4 | Y69: 107.8 | Z69: 116.4 | AA69: 99.2 | AC69: 6.6 | AD69: 6.2 | AE69: 6.4
M70: 5歳4ヶ月 | N70: 5.334333333 | P70: 108.9 | Q70: 117.9 | R70: 99.9 | T70: 5.334333333 | V70: 6.5 | Y70: 108.4 | Z70: 117.2 | AA70: 99.6 | AC70: 6.7 | AD70: 6.166666667 | AE70: 6.364197531
M71: =INT(N71)&"歳"&ROUND(MOD(N71*12,12),0)& "ヶ月" -> 5歳5ヶ月 | N71: 5.417666667 | P71: 109.4 | Q71: 118.4 | R71: 100.4 | T71: 5.417666667 | V71: 6.4 | Y71: 108.9 | Z71: 117.7 | AA71: 100.1 | AC71: 6.6 | AD71: 6.133333333 | AE71: 6.330246914 | AG71: =IF(O71="","",50+(O71-P71)/(Q71-P71)*20) ->  | AH71: =IF(AG71="","",AH$4+(AG71-50)/10*AG$4) -> 
M72: 5歳6ヶ月 | N72: =N71+1/12 -> 5.501 | P72: 110 | Q72: 119 | R72: 101 | T72: 5.501 | V72: 6.5 | Y72: 109.5 | Z72: 118.3 | AA72: 100.7 | AC72: 6.7 | AD72: 6.1 | AE72: 6.3
M73: 5歳7ヶ月 | N73: 5.584333333 | P73: 110.5 | Q73: 119.7 | R73: 101.3 | T73: 5.584333333 | V73: 6.5 | Y73: 110 | Z73: 119 | AA73: 101 | AC73: 6.6 | AD73: 6.066666667 | AE73: 6.301851852
M74: 5歳8ヶ月 | N74: 5.667666667 | P74: 111.1 | Q74: 120.3 | R74: 101.9 | T74: 5.667666667 | V74: 6.5 | Y74: 110.6 | Z74: 119.6 | AA74: 101.6 | AC74: 6.7 | AD74: 6.033333333 | AE74: 6.303703704
M75: 5歳9ヶ月 | N75: 5.751 | P75: 111.6 | Q75: 121 | R75: 102.2 | T75: 5.751 | V75: 6.5 | Y75: 111.1 | Z75: 120.1 | AA75: 102.1 | AC75: 6.6 | AD75: 6 | AE75: 6.3
M76: 5歳10ヶ月 | N76: 5.834333333 | P76: 112.2 | Q76: 121.6 | R76: 102.8 | T76: 5.834333333 | V76: 6.6 | Y76: 111.6 | Z76: 120.8 | AA76: 102.4 | AC76: 6.6 | AD76: 5.966666667 | AE76: 6.234567901
M77: 5歳11ヶ月 | N77: 5.917666667 | P77: 112.7 | Q77: 122.1 | R77: 103.3 | T77: 5.917666667 | V77: 6.5 | Y77: 112.2 | Z77: 121.4 | AA77: 103 | AC77: 6.6 | AD77: 5.933333333 | AE77: 6.165432099 | AJ77: 13歳モデル(あと○センチ伸びる)
M78: 6歳0ヶ月 | N78: 6.001 | P78: 113.3 | Q78: 122.9 | R78: 103.7 | T78: 6.001 | V78: 6.6 | Y78: 112.7 | Z78: 121.9 | AA78: 103.5 | AC78: 6.5 | AD78: 5.9 | AE78: 6.1 | AJ78: 57.971
M79: 6歳1ヶ月 | N79: 6.084333333 | P79: 113.9 | Q79: 123.5 | R79: 104.3 | T79: 6.084333333 | V79: 6.6 | Y79: 113.3 | Z79: 122.7 | AA79: 103.9 | AC79: 6.6 | AD79: 5.864197531 | AE79: 6.098765432 | AJ79: 57.46821762
M80: 6歳2ヶ月 | N80: 6.167666667 | P80: 114.5 | Q80: 124.1 | R80: 104.9 | T80: 6.167666667 | V80: 6.7 | Y80: 113.8 | Z80: 123.2 | AA80: 104.4 | AC80: 6.5 | AD80: 5.830246914 | AE80: 6.101234568 | AJ80: 56.95244785
M81: 6歳3ヶ月 | N81: 6.251 | P81: 115 | Q81: 124.8 | R81: 105.2 | T81: 6.251 | V81: 6.7 | Y81: 114.1 | Z81: 123.3 | AA81: 104.9 | AC81: 6.3 | AD81: 5.8 | AE81: 6.1 | AJ81: 56.42771595
M82: 6歳4ヶ月 | N82: 6.334333333 | P82: 115.6 | Q82: 125.4 | R82: 105.8 | T82: 6.334333333 | V82: 6.7 | Y82: 114.6 | Z82: 124 | AA82: 105.2 | AC82: 6.2 | AD82: 5.79691358 | AE82: 6.037037037 | AJ82: 55.89804717
M83: 6歳5ヶ月 | N83: 6.417666667 | P83: 116.1 | Q83: 125.9 | R83: 106.3 | T83: =N83 -> 6.417666667 | U83: =IF(OR(O71="",O83=""),NA(),O83-O71) ->  | V83: 6.7 | Y83: 115.2 | Z83: 124.8 | AA83: 105.6 | AC83: =Y83-Y71 -> 6.3 | AD83: 5.797530864 | AE83: 5.968518519 | AJ83: 55.36746677
M84: 6歳6ヶ月 | N84: 6.501 | P84: 116.7 | Q84: 126.7 | R84: 106.7 | T84: 6.501 | V84: 6.7 | Y84: 115.8 | Z84: 125.6 | AA84: 106 | AC84: 6.3 | AD84: 5.8 | AE84: 5.9 | AJ84: 54.84
M85: 6歳7ヶ月 | N85: 6.584333333 | P85: 117.2 | Q85: 127.2 | R85: 107.2 | T85: 6.584333333 | V85: 6.7 | Y85: 116.3 | Z85: 126.1 | AA85: 106.5 | AC85: 6.3 | AD85: 5.8 | AE85: 5.863580247 | AJ85: 54.39703164
M86: 6歳8ヶ月 | N86: 6.667666667 | P86: 117.7 | Q86: 127.7 | R86: 107.7 | T86: 6.667666667 | V86: 6.6 | Y86: 116.8 | Z86: 126.6 | AA86: 107 | AC86: 6.2 | AD86: 5.8 | AE86: 5.830864198 | AJ86: 53.95930864
M87: 6歳9ヶ月 | N87: 6.751 | P87: 118.2 | Q87: 128.2 | R87: 108.2 | T87: 6.751 | V87: 6.6 | Y87: 117.3 | Z87: 127.1 | AA87: 107.5 | AC87: 6.2 | AD87: 5.8 | AE87: 5.8 | AJ87: 53.5249375
M88: 6歳10ヶ月 | N88: 6.834333333 | P88: 118.6 | Q88: 128.6 | R88: 108.6 | T88: 6.834333333 | V88: 6.4 | Y88: 117.8 | Z88: 127.8 | AA88: 107.8 | AC88: 6.2 | AD88: 5.8 | AE88: 5.766666667 | AJ88: 53.09202469
M89: 6歳11ヶ月 | N89: 6.917666667 | P89: 119.1 | Q89: 129.1 | R89: 109.1 | T89: 6.917666667 | V89: 6.4 | Y89: 118.3 | Z89: 128.3 | AA89: 108.3 | AC89: 6.1 | AD89: 5.8 | AE89: 5.733333333 | AJ89: 52.6586767
M90: 7歳0ヶ月 | N90: 7.001 | P90: 119.6 | Q90: 129.8 | R90: 109.4 | T90: 7.001 | V90: 6.3 | W90: 5.80819069 | Y90: 118.8 | Z90: 128.8 | AA90: 108.8 | AC90: 6.1 | AD90: 5.8 | AE90: 5.7 | AJ90: 52.223
M91: 7歳1ヶ月 | N91: 7.084333333 | P91: 120.1 | Q91: 130.3 | R91: 109.9 | T91: 7.084333333 | V91: 6.2 | W91: 5.687096039 | Y91: 119.2 | Z91: 129.2 | AA91: 109.2 | AC91: 5.9 | AD91: 5.802469136 | AE91: 5.666666667 | AJ91: 51.74133449
M92: 7歳2ヶ月 | N92: 7.167666667 | P92: 120.6 | Q92: 130.8 | R92: 110.4 | T92: 7.167666667 | V92: 6.1 | W92: 5.635239897 | Y92: 119.7 | Z92: 129.7 | AA92: 109.7 | AC92: 5.9 | AD92: 5.80308642 | AE92: 5.633333333 | AJ92: 51.25637037
M93: 7歳3ヶ月 | N93: 7.251 | P93: 121.1 | Q93: 131.3 | R93: 110.9 | T93: 7.251 | V93: 6.1 | W93: 5.596282187 | Y93: 120.2 | Z93: 130.4 | AA93: 110 | AC93: 6.1 | AD93: 5.8 | AE93: 5.6 | AJ93: 50.76903125
M94: 7歳4ヶ月 | N94: 7.334333333 | P94: 121.5 | Q94: 131.7 | R94: 111.3 | T94: 7.334333333 | V94: 5.9 | W94: 5.568483126 | Y94: 120.7 | Z94: 130.9 | AA94: 110.5 | AC94: 6.1 | AD94: 5.769753086 | AE94: 5.566666667 | AJ94: 50.28024074
M95: 7歳5ヶ月 | N95: 7.417666667 | P95: 122 | Q95: 132.2 | R95: 111.8 | T95: 7.417666667 | V95: 5.9 | W95: 5.550102931 | Y95: 121.2 | Z95: 131.4 | AA95: 111 | AC95: 6 | AD95: 5.735802469 | AE95: 5.533333333 | AJ95: 49.79092245
M96: 7歳6ヶ月 | N96: 7.501 | P96: 122.5 | Q96: 132.7 | R96: 112.3 | T96: 7.501 | V96: 5.8 | W96: 5.53940182 | Y96: 121.7 | Z96: 131.9 | AA96: 111.5 | AC96: 5.9 | AD96: 5.7 | AE96: 5.5 | AJ96: 49.302
M97: 7歳7ヶ月 | N97: 7.584333333 | P97: 123 | Q97: 133.4 | R97: 112.6 | T97: 7.584333333 | V97: 5.8 | W97: 5.560844316 | Y97: 122.2 | Z97: 132.6 | AA97: 111.8 | AC97: 5.9 | AD97: 5.666666667 | AE97: 5.464197531 | AJ97: 48.83450694
M98: 7歳8ヶ月 | N98: 7.667666667 | P98: 123.4 | Q98: 133.8 | R98: 113 | T98: 7.667666667 | V98: 5.7 | W98: 5.589898772 | Y98: 122.7 | Z98: 133.1 | AA98: 112.3 | AC98: 5.9 | AD98: 5.633333333 | AE98: 5.430246914 | AJ98: 48.36716667
M99: 7歳9ヶ月 | N99: 7.751 | P99: 123.9 | Q99: 134.3 | R99: 113.5 | T99: 7.751 | V99: 5.7 | W99: 5.623360705 | Y99: 123.2 | Z99: 133.6 | AA99: 112.8 | AC99: 5.9 | AD99: 5.6 | AE99: 5.4 | AJ99: 47.8988125
M100: 7歳10ヶ月 | N100: 7.834333333 | P100: 124.4 | Q100: 134.8 | R100: 114 | T100: 7.834333333 | V100: 5.8 | W100: 5.660508075 | Y100: 123.6 | Z100: 134.2 | AA100: 113 | AC100: 5.8 | AD100: 5.566666667 | AE100: 5.399382716 | AJ100: 47.42827778
M101: 7歳11ヶ月 | N101: 7.917666667 | P101: 124.8 | Q101: 135.4 | R101: 114.2 | T101: 7.917666667 | V101: 5.7 | W101: 5.700618843 | Y101: 124.1 | Z101: 134.7 | AA101: 113.5 | AC101: 5.8 | AD101: 5.533333333 | AE101: 5.400617284 | AJ101: 46.95439583 | AK101: 予想身長
M102: 8歳0ヶ月 | N102: 8.001 | P102: 125.3 | Q102: 135.9 | R102: 114.7 | T102: 8.001 | V102: 5.7 | W102: 5.742970968 | Y102: 124.6 | Z102: 135.4 | AA102: 113.8 | AC102: 5.8 | AD102: 5.5 | AE102: 5.4 | AJ102: 46.476 | AK102: =IF(O102="","",O102+OFFSET(AJ102,-$AK$6,0)) -> 
M103: 8歳1ヶ月 | N103: 8.084333333 | P103: 125.8 | Q103: 136.4 | R103: 115.2 | T103: 8.084333333 | V103: 5.7 | W103: 5.797580259 | Y103: 125.1 | Z103: 135.9 | AA103: 114.3 | AC103: 5.9 | AD103: 5.466666667 | AE103: 5.367283951 | AJ103: 45.93858488 | AK103: =IF(O103="","",O103+OFFSET(AJ103,-$AK$6,0)) -> 
M104: 8歳2ヶ月 | N104: 8.167666667 | P104: 126.2 | Q104: 136.8 | R104: 115.6 | T104: 8.167666667 | V104: 5.6 | W104: 5.853518132 | Y104: 125.6 | Z104: 136.4 | AA104: 114.8 | AC104: 5.9 | AD104: 5.433333333 | AE104: 5.332716049 | AJ104: 45.39762346
M105: 8歳3ヶ月 | N105: 8.251 | P105: 126.7 | Q105: 137.5 | R105: 115.9 | T105: 8.251 | V105: 5.6 | W105: 5.90860116 | Y105: 126.1 | Z105: 137.1 | AA105: 115.1 | AC105: 5.9 | AD105: 5.4 | AE105: 5.3 | AJ105: 44.85525
M106: 8歳4ヶ月 | N106: 8.334333333 | P106: 127.2 | Q106: 138 | R106: 116.4 | T106: 8.334333333 | V106: 5.7 | W106: 5.9616212 | Y106: 126.5 | Z106: 137.5 | AA106: 115.5 | AC106: 5.8 | AD106: 5.366666667 | AE106: 5.29691358 | AJ106: 44.31359877
M107: 8歳5ヶ月 | N107: 8.417666667 | P107: 127.6 | Q107: 138.4 | R107: 116.8 | T107: 8.417666667 | V107: 5.6 | W107: 6.011370106 | Y107: 127 | Z107: 138 | AA107: 116 | AC107: 5.8 | AD107: 5.333333333 | AE107: 5.297530864 | AJ107: 43.77480401
M108: 8歳6ヶ月 | N108: 8.501 | P108: 128.1 | Q108: 139.1 | R108: 117.1 | T108: 8.501 | V108: 5.6 | W108: 6.056639735 | Y108: 127.5 | Z108: 138.7 | AA108: 116.3 | AC108: 5.8 | AD108: 5.3 | AE108: 5.3 | AJ108: 43.241
M109: 8歳7ヶ月 | N109: 8.584333333 | P109: 128.6 | Q109: 139.6 | R109: 117.6 | T109: 8.584333333 | V109: 5.6 | W109: 6.059332053 | Y109: 128 | Z109: 139.2 | AA109: 116.8 | AC109: 5.8 | AD109: 5.266666667 | AE109: 5.297530864 | AJ109: 42.77490856
M110: 8歳8ヶ月 | N110: 8.667666667 | P110: 129 | Q110: 140 | R110: 118 | T110: 8.667666667 | V110: 5.6 | W110: 6.05244632 | Y110: 128.5 | Z110: 139.9 | AA110: 117.1 | AC110: 5.8 | AD110: 5.233333333 | AE110: 5.29691358 | AJ110: 42.31501852
M111: 8歳9ヶ月 | N111: 8.751 | P111: 129.5 | Q111: 140.5 | R111: 118.5 | T111: 8.751 | V111: 5.6 | W111: 6.039298989 | Y111: 129 | Z111: 140.4 | AA111: 117.6 | AC111: 5.8 | AD111: 5.2 | AE111: 5.3 | AJ111: 41.86040625
M112: 8歳10ヶ月 | N112: 8.834333333 | P112: 129.9 | Q112: 140.9 | R112: 118.9 | T112: 8.834333333 | V112: 5.5 | W112: 6.01964591 | Y112: 129.5 | Z112: 141.1 | AA112: 117.9 | AC112: 5.9 | AD112: 5.164197531 | AE112: 5.332716049 | AJ112: 41.41014815
M113: 8歳11ヶ月 | N113: 8.917666667 | P113: 130.4 | Q113: 141.6 | R113: 119.2 | T113: 8.917666667 | V113: 5.6 | W113: 5.993242934 | Y113: 130 | Z113: 141.6 | AA113: 118.4 | AC113: 5.9 | AD113: 5.130246914 | AE113: 5.367283951 | AJ113: 40.9633206
M114: 9歳0ヶ月 | N114: 9.001 | P114: 130.9 | Q114: 142.1 | R114: 119.7 | T114: 9.001 | V114: 5.6 | W114: 5.959845912 | Y114: 130.5 | Z114: 142.3 | AA114: 118.7 | AC114: 5.9 | AD114: 5.1 | AE114: 5.4 | AJ114: 40.519
M115: 9歳1ヶ月 | N115: 9.084333333 | P115: 131.3 | Q115: 142.5 | R115: 120.1 | T115: 9.084333333 | V115: 5.5 | W115: 5.871139501 | Y115: 131 | Z115: 142.8 | AA115: 119.2 | AC115: 5.9 | AD115: 5.099382716 | AE115: 5.398148148 | AJ115: 40.07497377
M116: 9歳2ヶ月 | N116: 9.167666667 | P116: 131.8 | Q116: 143 | R116: 120.6 | T116: 9.167666667 | V116: 5.6 | W116: 5.772296205 | Y116: 131.5 | Z116: 143.5 | AA116: 119.5 | AC116: 5.9 | AD116: 5.100617284 | AE116: 5.396296296 | AJ116: 39.63345679
M117: 9歳3ヶ月 | N117: 9.251 | P117: 132.2 | Q117: 143.6 | R117: 120.8 | T117: 9.251 | V117: 5.5 | W117: 5.668508296 | Y117: 132 | Z117: 144 | AA117: 120 | AC117: 5.9 | AD117: 5.1 | AE117: 5.4 | AJ117: 39.195375
M118: 9歳4ヶ月 | N118: 9.334333333 | P118: 132.7 | Q118: 144.1 | R118: 121.3 | T118: 9.334333333 | V118: 5.5 | W118: 5.560978463 | Y118: 132.5 | Z118: 144.7 | AA118: 120.3 | AC118: 6 | AD118: 5.067283951 | AE118: 5.458024691 | AJ118: 38.76165432
M119: 9歳5ヶ月 | N119: 9.417666667 | P119: 133.1 | Q119: 144.5 | R119: 121.7 | T119: 9.417666667 | V119: 5.5 | W119: 5.450909393 | Y119: 133 | Z119: 145.2 | AA119: 120.8 | AC119: 6 | AD119: 5.032716049 | AE119: 5.525308642 | AJ119: 38.33322068
M120: 9歳6ヶ月 | N120: 9.501 | P120: 133.6 | Q120: 145 | R120: 122.2 | T120: 9.501 | V120: 5.5 | W120: 5.339503772 | Y120: 133.5 | Z120: 145.9 | AA120: 121.1 | AC120: 6 | AD120: 5 | AE120: 5.6 | AJ120: 37.911
M121: 9歳7ヶ月 | N121: 9.584333333 | P121: 134.1 | Q121: 145.7 | R121: 122.5 | T121: 9.584333333 | V121: 5.5 | W121: 5.226457256 | Y121: 134.1 | Z121: 146.5 | AA121: 121.7 | AC121: 6.1 | AD121: 4.999382716 | AE121: 5.694444444 | AJ121: 37.55533333
M122: 9歳8ヶ月 | N122: 9.667666667 | P122: 134.5 | Q122: 146.1 | R122: 122.9 | T122: 9.667666667 | V122: 5.5 | W122: 5.114597019 | Y122: 134.6 | Z122: 147.2 | AA122: 122 | AC122: 6.1 | AD122: 5.000617284 | AE122: 5.794444444 | AJ122: 37.20488889
M123: 9歳9ヶ月 | N123: 9.751 | P123: 135 | Q123: 146.6 | R123: 123.4 | T123: 9.751 | V123: 5.5 | W123: 5.005504272 | Y123: 135.2 | Z123: 147.8 | AA123: 122.6 | AC123: 6.2 | AD123: 5 | AE123: 5.9 | AJ123: 36.85775
M124: 9歳10ヶ月 | N124: 9.834333333 | P124: 135.4 | Q124: 147.2 | R124: 123.6 | T124: 9.834333333 | V124: 5.5 | W124: 4.900640403 | Y124: 135.8 | Z124: 148.6 | AA124: 123 | AC124: 6.3 | AD124: 4.967283951 | AE124: 6.030246914 | AJ124: 36.512
M125: 9歳11ヶ月 | N125: 9.917666667 | P125: 135.9 | Q125: 147.7 | R125: 124.1 | T125: 9.917666667 | V125: 5.5 | W125: 4.801466802 | Y125: 136.3 | Z125: 149.1 | AA125: 123.5 | AC125: 6.3 | AD125: 4.932716049 | AE125: 6.164197531 | AJ125: 36.16572222
M126: 10歳0ヶ月 | N126: 10.001 | P126: 136.4 | Q126: 148.2 | R126: 124.6 | T126: 10.001 | V126: 5.5 | W126: 4.709444856 | Y126: 136.9 | Z126: 149.9 | AA126: 123.9 | AC126: 6.4 | AD126: 4.9 | AE126: 6.3 | AJ126: 35.817
M127: 10歳1ヶ月 | N127: 10.08433333 | P127: 136.8 | Q127: 148.8 | R127: 124.8 | T127: 10.08433333 | V127: 5.5 | W127: 4.683640006 | Y127: 137.5 | Z127: 150.5 | AA127: 124.5 | AC127: 6.5 | AD127: 4.894444444 | AE127: 6.428395062 | AJ127: 35.42785224
M128: 10歳2ヶ月 | N128: 10.16766667 | P128: 137.3 | Q128: 149.3 | R128: 125.3 | T128: 10.16766667 | V128: 5.5 | W128: 4.671013422 | Y128: 138 | Z128: 151.2 | AA128: 124.8 | AC128: 6.5 | AD128: 4.894444444 | AE128: 6.560493827 | AJ128: 35.03412346
M129: 10歳3ヶ月 | N129: 10.251 | P129: 137.7 | Q129: 149.7 | R129: 125.7 | T129: 10.251 | V129: 5.5 | W129: 4.666645616 | Y129: 138.6 | Z129: 151.8 | AA129: 125.4 | AC129: 6.6 | AD129: 4.9 | AE129: 6.7 | AJ129: 34.63559375
M130: 10歳4ヶ月 | N130: 10.33433333 | P130: 138.2 | Q130: 150.4 | R130: 126 | T130: 10.33433333 | V130: 5.5 | W130: 4.670296298 | Y130: 139.2 | Z130: 152.6 | AA130: 125.8 | AC130: 6.7 | AD130: 4.932716049 | AE130: 6.89382716 | AJ130: 34.23204321
M131: 10歳5ヶ月 | N131: 10.41766667 | P131: 138.6 | Q131: 150.8 | R131: 126.4 | T131: 10.41766667 | V131: 5.5 | W131: 4.681725177 | Y131: 139.7 | Z131: 153.1 | AA131: 126.3 | AC131: 6.7 | AD131: 4.967283951 | AE131: 7.095061728 | AJ131: 33.82325193
M132: 10歳6ヶ月 | N132: 10.501 | P132: 139.1 | Q132: 151.3 | R132: 126.9 | T132: 10.501 | V132: 5.5 | W132: 4.700691962 | Y132: 140.3 | Z132: 153.9 | AA132: 126.7 | AC132: 6.8 | AD132: 5 | AE132: 7.3 | AJ132: 33.409
M133: 10歳7ヶ月 | N133: 10.58433333 | P133: 139.6 | Q133: 152 | R133: 127.2 | T133: 10.58433333 | V133: 5.5 | W133: 4.765583098 | Y133: 140.9 | Z133: 154.5 | AA133: 127.3 | AC133: 6.8 | AD133: 5.000617284 | AE133: 7.504938272 | AJ133: 32.95946721
M134: 10歳8ヶ月 | N134: 10.66766667 | P134: 140.1 | Q134: 152.7 | R134: 127.5 | T134: 10.66766667 | V134: 5.6 | W134: 4.841424488 | Y134: 141.4 | Z134: 155 | AA134: 127.8 | AC134: 6.8 | AD134: 4.999382716 | AE134: 7.70617284 | AJ134: 32.50326543
M135: =INT(N135)&"歳"&ROUND(MOD(N135*12,12),0)& "ヶ月" -> 10歳9ヶ月 | N135: 10.751 | P135: 140.7 | Q135: 153.5 | R135: 127.9 | T135: 10.751 | V135: 5.7 | W135: 4.924521925 | Y135: 142 | Z135: 155.6 | AA135: 128.4 | AC135: 6.8 | AD135: 5 | AE135: 7.9 | AG135: =IF(O135="","",50+(O135-P135)/(Q135-P135)*20) ->  | AH135: =IF(AG135="","",AH$4+(AG135-50)/10*AG$4) ->  | AJ135: 32.03940625
M136: 10歳10ヶ月 | N136: =N135+1/12 -> 10.83433333 | P136: 141.2 | Q136: 154.2 | R136: 128.2 | T136: 10.83433333 | V136: 5.8 | W136: 5.014864031 | Y136: 142.6 | Z136: 156.2 | AA136: 129 | AC136: 6.8 | AD136: 5.027777778 | AE136: 8.056790123 | AJ136: 31.56690123
M137: 10歳11ヶ月 | N137: 10.91766667 | P137: 141.7 | Q137: 154.9 | R137: 128.5 | T137: 10.91766667 | V137: 5.8 | W137: 5.11243943 | Y137: 143.1 | Z137: 156.5 | AA137: 129.7 | AC137: 6.8 | AD137: 5.061111111 | AE137: 8.193209877 | AJ137: 31.08476196
M138: 11歳0ヶ月 | N138: 11.001 | P138: 142.2 | Q138: 155.4 | R138: 129 | T138: 11.001 | V138: 5.8 | W138: 5.217236745 | Y138: 143.7 | Z138: 157.1 | AA138: 130.3 | AC138: 6.8 | AD138: 5.1 | AE138: 8.3 | AJ138: 30.592
M139: 11歳1ヶ月 | N139: 11.08433333 | P139: 142.7 | Q139: 156.1 | R139: 129.3 | T139: 11.08433333 | V139: 5.9 | W139: 5.373127058 | Y139: 144.3 | Z139: 157.7 | AA139: 130.9 | AC139: 6.8 | AD139: 5.161111111 | AE139: 8.229012346 | AJ139: 30.00384954
M140: 11歳2ヶ月 | N140: 11.16766667 | P140: 143.2 | Q140: 156.8 | R140: 129.6 | T140: 11.16766667 | V140: 5.9 | W140: 5.539040444 | Y140: 144.8 | Z140: 158.2 | AA140: 131.4 | AC140: 6.8 | AD140: 5.227777778 | AE140: 8.12654321 | AJ140: 29.40551852
M141: 11歳3ヶ月 | N141: 11.251 | P141: 143.8 | Q141: 157.6 | R141: 130 | T141: 11.251 | V141: 6.1 | W141: 5.710797652 | Y141: 145.4 | Z141: 158.8 | AA141: 132 | AC141: 6.8 | AD141: 5.3 | AE141: 8 | AJ141: 28.7984375
M142: 11歳4ヶ月 | N142: 11.33433333 | P142: 144.3 | Q142: 158.3 | R142: 130.3 | T142: 11.33433333 | V142: 6.1 | W142: 5.887690507 | Y142: 146 | Z142: 159.4 | AA142: 132.6 | AC142: 6.8 | AD142: 5.391975309 | AE142: 7.811728395 | AJ142: 28.18403704
M143: 11歳5ヶ月 | N143: 11.41766667 | P143: 144.8 | Q143: 159 | R143: 130.6 | T143: 11.41766667 | V143: 6.2 | W143: 6.069010836 | Y143: 146.5 | Z143: 159.9 | AA143: 133.1 | AC143: 6.8 | AD143: 5.491358025 | AE143: 7.610493827 | AJ143: 27.56374769
M144: 11歳6ヶ月 | N144: 11.501 | P144: 145.3 | Q144: 159.5 | R144: 131.1 | T144: 11.501 | V144: 6.2 | W144: 6.254050466 | Y144: 147.1 | Z144: 160.5 | AA144: 133.7 | AC144: 6.8 | AD144: 5.6 | AE144: 7.4 | AJ144: 26.939
M145: 11歳7ヶ月 | N145: 11.58433333 | P145: 145.9 | Q145: 160.3 | R145: 131.5 | T145: 11.58433333 | V145: 6.3 | W145: 6.458423767 | Y145: 147.5 | Z145: 160.7 | AA145: 134.3 | AC145: 6.6 | AD145: 5.758024691 | AE145: 7.174691358 | AJ145: 26.31104398
M146: 11歳8ヶ月 | N146: 11.66766667 | P146: 146.6 | Q146: 161.2 | R146: 132 | T146: 11.66766667 | V146: 6.5 | W146: 6.666612773 | Y146: 147.9 | Z146: 160.9 | AA146: 134.9 | AC146: 6.5 | AD146: 5.925308642 | AE146: 6.941975309 | AJ146: 25.67840741
M147: 11歳9ヶ月 | N147: 11.751 | P147: 147.2 | Q147: 162 | R147: 132.4 | T147: =N147 -> 11.751 | U147: =IF(OR(O135="",O147=""),NA(),O147-O135) ->  | V147: 6.5 | W147: 6.876332238 | Y147: 148.4 | Z147: 161.4 | AA147: 135.4 | AC147: =Y147-Y135 -> 6.4 | AD147: 6.1 | AE147: 6.7 | AJ147: 25.0394375
M148: 11歳10ヶ月 | N148: 11.83433333 | P148: 147.8 | Q148: 162.6 | R148: 133 | T148: 11.83433333 | V148: 6.6 | W148: 7.086839894 | Y148: 148.8 | Z148: 161.6 | AA148: 136 | AC148: 6.2 | AD148: 6.294444444 | AE148: 6.403703704 | AJ148: 24.39248148
M149: 11歳11ヶ月 | N149: 11.91766667 | P149: 148.5 | Q149: 163.5 | R149: 133.5 | T149: 11.91766667 | V149: 6.8 | W149: 7.297393474 | Y149: 149.2 | Z149: 162 | AA149: 136.4 | AC149: 6.1 | AD149: 6.494444444 | AE149: 6.101851852 | AJ149: 23.73588657
M150: 12歳0ヶ月 | N150: 12.001 | P150: 149.1 | Q150: 164.3 | R150: 133.9 | T150: 12.001 | V150: 6.9 | W150: 7.507250709 | Y150: 149.6 | Z150: 162.2 | AA150: 137 | AC150: 5.9 | AD150: 6.7 | AE150: 5.8 | AJ150: 23.068
M151: 12歳1ヶ月 | N151: 12.08433333 | P151: 149.7 | Q151: 165.1 | R151: 134.3 | T151: 12.08433333 | V151: 7 | W151: 7.704447895 | Y151: 150 | Z151: 162.4 | AA151: 137.6 | AC151: 5.7 | AD151: 6.917901235 | AE151: 5.530246914 | AJ151: 22.28738426
M152: 12歳2ヶ月 | N152: 12.16766667 | P152: 150.4 | Q152: 166 | R152: 134.8 | T152: 12.16766667 | V152: 7.2 | W152: 7.899219006 | Y152: 150.4 | Z152: 162.8 | AA152: 138 | AC152: 5.6 | AD152: 7.148765432 | AE152: 5.264197531 | AJ152: 21.49596296
M153: 12歳3ヶ月 | N153: 12.251 | P153: 151 | Q153: 166.6 | R153: 135.4 | T153: 12.251 | V153: 7.2 | W153: 8.092069785 | Y153: 150.9 | Z153: 163.1 | AA153: 138.7 | AC153: 5.5 | AD153: 7.4 | AE153: 5 | AJ153: 20.695875
M154: 12歳4ヶ月 | N154: 12.33433333 | P154: 151.6 | Q154: 167.4 | R154: 135.8 | T154: 12.33433333 | V154: 7.3 | W154: 8.282775967 | Y154: 151.3 | Z154: 163.5 | AA154: 139.1 | AC154: 5.3 | AD154: 7.791975309 | AE154: 4.730864198 | AJ154: 19.88925926
M155: 12歳5ヶ月 | N155: 12.41766667 | P155: 152.3 | Q155: 168.3 | R155: 136.3 | T155: 12.41766667 | V155: 7.5 | W155: 8.471113286 | Y155: 151.7 | Z155: 163.7 | AA155: 139.7 | AC155: 5.2 | AD155: 8.19691358 | AE155: 4.463580247 | AJ155: 19.07825463
M156: 12歳6ヶ月 | N156: 12.501 | P156: 152.9 | Q156: 169.1 | R156: 136.7 | T156: 12.501 | V156: 7.6 | W156: 8.656857475 | Y156: 152.1 | Z156: 163.9 | AA156: 140.3 | AC156: 5 | AD156: 8.6 | AE156: 4.2 | AJ156: 18.265
M157: 12歳7ヶ月 | N157: 12.58433333 | P157: 153.5 | Q157: 169.5 | R157: 137.5 | T157: 12.58433333 | V157: 7.6 | W157: 8.838603905 | Y157: 152.4 | Z157: 164.2 | AA157: 140.6 | AC157: 4.9 | AD157: 8.921604938 | AE157: 3.958641975 | AJ157: 17.45616628
M158: 12歳8ヶ月 | N158: 12.66766667 | P158: 154.1 | Q158: 170.1 | R158: 138.1 | T158: 12.66766667 | V158: 7.5 | W158: 9.014774586 | Y158: 152.6 | Z158: 164.2 | AA158: 141 | AC158: 4.7 | AD158: 9.222839506 | AE158: 3.724691358 | AJ158: 16.64846914
M159: 12歳9ヶ月 | N159: 12.751 | P159: 154.7 | Q159: 170.7 | R159: 138.7 | T159: 12.751 | V159: 7.5 | W159: 9.182512481 | Y159: 152.9 | Z159: 164.5 | AA159: 141.3 | AC159: 4.5 | AD159: 9.5 | AE159: 3.5 | AJ159: 15.84315625
M160: 12歳10ヶ月 | N160: 12.83433333 | P160: 155.3 | Q160: 171.1 | R160: 139.5 | T160: 12.83433333 | V160: 7.5 | W160: 9.338893369 | Y160: 153.1 | Z160: 164.7 | AA160: 141.5 | AC160: 4.3 | AD160: 9.670987654 | AE160: 3.327160494 | AJ160: 15.04147531
M161: 12歳11ヶ月 | N161: 12.91766667 | P161: 155.9 | Q161: 171.7 | R161: 140.1 | T161: 12.91766667 | V161: 7.4 | W161: 9.480993029 | Y161: 153.4 | Z161: 164.8 | AA161: 142 | AC161: 4.2 | AD161: 9.806790123 | AE161: 3.161728395 | AJ161: 14.244674
M162: 13歳0ヶ月 | N162: 13.001 | P162: 156.5 | Q162: 172.3 | R162: 140.7 | T162: 13.001 | V162: 7.4 | W162: 9.605887241 | Y162: 153.6 | Z162: 165 | AA162: 142.2 | AC162: 4 | AD162: 9.9 | AE162: 3 | AJ162: 13.454
M163: 13歳1ヶ月 | N163: 13.08433333 | P163: 157 | Q163: 172.6 | R163: 141.4 | T163: 13.08433333 | V163: 7.3 | W163: 9.579395487 | Y163: 153.9 | Z163: 165.1 | AA163: 142.7 | AC163: 3.9 | AD163: 9.766049383 | AE163: 2.828395062 | AJ163: 12.71258796
M164: 13歳2ヶ月 | N164: 13.16766667 | P164: 157.6 | Q164: 173.2 | R164: 142 | T164: 13.16766667 | V164: 7.2 | W164: 9.522237495 | Y164: 154.1 | Z164: 165.3 | AA164: 142.9 | AC164: 3.7 | AD164: 9.595061728 | AE164: 2.660493827 | AJ164: 11.9802037
M165: 13歳3ヶ月 | N165: 13.251 | P165: 158.2 | Q165: 173.8 | R165: 142.6 | T165: 13.251 | V165: 7.2 | W165: 9.445648847 | Y165: 154.4 | Z165: 165.4 | AA165: 143.4 | AC165: 3.5 | AD165: 9.4 | AE165: 2.5 | AJ165: 11.2585
M166: 13歳4ヶ月 | N166: 13.33433333 | P166: 158.8 | Q166: 174.4 | R166: 143.2 | T166: 13.33433333 | V166: 7.2 | W166: 9.350107766 | Y166: 154.6 | Z166: 165.6 | AA166: 143.6 | AC166: 3.3 | AD166: 9.182716049 | AE166: 2.396296296 | AJ166: 10.54912963
M167: 13歳5ヶ月 | N167: 13.41766667 | P167: 159.4 | Q167: 174.8 | R167: 144 | T167: 13.41766667 | V167: 7.1 | W167: 9.236092471 | Y167: 154.9 | Z167: 165.7 | AA167: 144.1 | AC167: 3.2 | AD167: 8.950617284 | AE167: 2.298148148 | AJ167: 9.85374537 | AK167: =IF(O167="","",O167+OFFSET(AJ167,-$AK$6,0)) -> 
M168: 13歳6ヶ月 | N168: 13.501 | P168: 160 | Q168: 175.4 | R168: 144.6 | T168: 13.501 | V168: 7.1 | W168: 9.104081184 | Y168: 155.1 | Z168: 165.9 | AA168: 144.3 | AC168: 3 | AD168: 8.7 | AE168: 2.2 | AJ168: 9.174
M169: 13歳7ヶ月 | N169: 13.58433333 | P169: 160.5 | Q169: 175.7 | R169: 145.3 | T169: 13.58433333 | V169: 7 | W169: 8.849607855 | Y169: 155.2 | Z169: 166 | AA169: 144.4 | AC169: 2.8 | AD169: 8.350617284 | AE169: 2.067283951 | AJ169: 8.6249375
M170: 13歳8ヶ月 | N170: 13.66766667 | P170: 160.9 | Q170: 175.9 | R170: 145.9 | T170: 13.66766667 | V170: 6.8 | W170: 8.569672116 | Y170: 155.4 | Z170: 166.2 | AA170: 144.6 | AC170: 2.8 | AD170: 7.982716049 | AE170: 1.932716049 | AJ170: 8.093166667
M171: 13歳9ヶ月 | N171: 13.751 | P171: 161.4 | Q171: 176.2 | R171: 146.6 | T171: 13.751 | V171: 6.7 | W171: 8.276485388 | Y171: 155.5 | Z171: 166.3 | AA171: 144.7 | AC171: 2.6 | AD171: 7.6 | AE171: 1.8 | AJ171: 7.5786875
M172: 13歳10ヶ月 | N172: 13.83433333 | P172: 161.8 | Q172: 176.4 | R172: 147.2 | T172: 13.83433333 | V172: 6.5 | W172: 7.972256214 | Y172: 155.7 | Z172: 166.5 | AA172: 144.9 | AC172: 2.6 | AD172: 7.165432099 | AE172: 1.694444444 | AJ172: 7.0815
M173: 13歳11ヶ月 | N173: 13.91766667 | P173: 162.3 | Q173: 176.7 | R173: 147.9 | T173: 13.91766667 | V173: 6.4 | W173: 7.659193136 | Y173: 155.8 | Z173: 166.6 | AA173: 145 | AC173: 2.4 | AD173: 6.729012346 | AE173: 1.594444444 | AJ173: 6.601604167
M174: 14歳0ヶ月 | N174: 14.001 | P174: 162.8 | Q174: 177 | R174: 148.6 | T174: 14.001 | V174: 6.3 | W174: 7.339504698 | Y174: 156 | Z174: 166.8 | AA174: 145.2 | AC174: 2.4 | AD174: 6.3 | AE174: 1.5 | AJ174: 6.139
M175: 14歳1ヶ月 | N175: 14.08433333 | P175: 163.2 | Q175: 177.2 | R175: 149.2 | T175: 14.08433333 | V175: 6.2 | W175: 6.999933704 | Y175: 156.1 | Z175: 166.7 | AA175: 145.5 | AC175: 2.2 | AD175: 5.952469136 | AE175: 1.430246914 | AJ175: 5.808239969
M176: 14歳2ヶ月 | N176: 14.16766667 | P176: 163.7 | Q176: 177.5 | R176: 149.9 | T176: 14.16766667 | V176: 6.1 | W176: 6.65555852 | Y176: 156.2 | Z176: 166.8 | AA176: 145.6 | AC176: 2.1 | AD176: 5.619753086 | AE176: 1.364197531 | AJ176: 5.492919753
M177: 14歳3ヶ月 | N177: 14.251 | P177: 164.1 | Q177: 177.7 | R177: 150.5 | T177: 14.251 | V177: 5.9 | W177: 6.308256479 | Y177: 156.4 | Z177: 167 | AA177: 145.8 | AC177: 2 | AD177: 5.3 | AE177: 1.3 | AJ177: 5.1911875
M178: 14歳4ヶ月 | N178: 14.33433333 | P178: 164.6 | Q178: 178 | R178: 151.2 | T178: 14.33433333 | V178: 5.8 | W178: 5.958715738 | Y178: 156.5 | Z178: 167.1 | AA178: 145.9 | AC178: 1.9 | AD178: 5.022222222 | AE178: 1.233333333 | AJ178: 4.901191358
M179: 14歳5ヶ月 | N179: 14.41766667 | P179: 165 | Q179: 178.2 | R179: 151.8 | T179: 14.41766667 | V179: 5.6 | W179: 5.607624452 | Y179: 156.7 | Z179: 167.3 | AA179: 146.1 | AC179: 1.8 | AD179: 4.755555556 | AE179: 1.166666667 | AJ179: 4.621079475
M180: 14歳6ヶ月 | N180: 14.501 | P180: 165.5 | Q180: 178.5 | R180: 152.5 | T180: 14.501 | V180: 5.5 | W180: 5.255670779 | Y180: 156.8 | Z180: 167.4 | AA180: 146.2 | AC180: 1.7 | AD180: 4.5 | AE180: 1.1 | AJ180: 4.349
M181: 14歳7ヶ月 | N181: 14.58433333 | P181: 165.8 | Q181: 178.6 | R181: 153 | T181: 14.58433333 | V181: 5.3 | W181: 4.89605935 | Y181: 156.8 | Z181: 167.4 | AA181: 146.2 | AC181: 1.6 | AD181: 4.29382716 | AE181: 1.030864198 | AJ181: 4.109868056
M182: 14歳8ヶ月 | N182: 14.66766667 | P182: 166 | Q182: 178.8 | R182: 153.2 | T182: 14.66766667 | V182: 5.1 | W182: 4.537447769 | Y182: 156.9 | Z182: 167.5 | AA182: 146.3 | AC182: 1.5 | AD182: 4.095061728 | AE182: 0.9635802469 | AJ182: 3.876833333
M183: 14歳9ヶ月 | N183: 14.751 | P183: 166.3 | Q183: 178.9 | R183: 153.7 | T183: 14.751 | V183: 4.9 | W183: 4.182499312 | Y183: 156.9 | Z183: 167.5 | AA183: 146.3 | AC183: 1.4 | AD183: 3.9 | AE183: 0.9 | AJ183: 3.6498125
M184: 14歳10ヶ月 | N184: 14.83433333 | P184: 166.5 | Q184: 179.1 | R184: 153.9 | T184: 14.83433333 | V184: 4.7 | W184: 3.833188047 | Y184: 157 | Z184: 167.6 | AA184: 146.4 | AC184: 1.3 | AD184: 3.697530864 | AE184: 0.8635802469 | AJ184: 3.428722222
M185: 14歳11ヶ月 | N185: 14.91766667 | P185: 166.8 | Q185: 179.2 | R185: 154.4 | T185: 14.91766667 | V185: 4.5 | W185: 3.491488041 | Y185: 157 | Z185: 167.6 | AA185: 146.4 | AC185: 1.2 | AD185: 3.49691358 | AE185: 0.8308641975 | AJ185: 3.213479167
M186: 15歳0ヶ月 | N186: 15.001 | P186: 167.1 | Q186: 179.5 | R186: 154.7 | T186: 15.001 | V186: 4.3 | W186: 3.159373363 | Y186: 157.1 | Z186: 167.7 | AA186: 146.5 | AC186: 1.1 | AD186: 3.3 | AE186: 0.8 | AJ186: 3.004
M187: 15歳1ヶ月 | N187: 15.08433333 | P187: 167.3 | Q187: 179.5 | R187: 155.1 | T187: 15.08433333 | V187: 4.1 | W187: 2.914604344 | Y187: 157.1 | Z187: 167.7 | AA187: 146.5 | AC187: 1 | AD187: 3.130246914 | AE187: 0.7691358025 | AJ187: 2.83514892
M188: 15歳2ヶ月 | N188: 15.16766667 | P188: 167.6 | Q188: 179.8 | R188: 155.4 | T188: 15.16766667 | V188: 3.9 | W188: 2.687632727 | Y188: 157.1 | Z188: 167.5 | AA188: 146.7 | AC188: 0.9 | AD188: 2.964197531 | AE188: 0.7364197531 | AJ188: 2.671746914
M189: 15歳3ヶ月 | N189: 15.251 | P189: 167.8 | Q189: 179.8 | R189: 155.8 | T189: 15.251 | V189: 3.7 | W189: 2.472320656 | Y189: 157.2 | Z189: 167.6 | AA189: 146.8 | AC189: 0.8 | AD189: 2.8 | AE189: 0.7 | AJ189: 2.5135625
M190: 15歳4ヶ月 | N190: 15.33433333 | P190: 168.1 | Q190: 180.1 | R190: 156.1 | T190: 15.33433333 | V190: 3.5 | W190: 2.268644599 | Y190: 157.2 | Z190: 167.6 | AA190: 146.8 | AC190: 0.7 | AD190: 2.630864198 | AE190: 0.6339506173 | AJ190: 2.360364198
M191: 15歳5ヶ月 | N191: 15.41766667 | P191: 168.3 | Q191: 180.1 | R191: 156.5 | T191: 15.41766667 | V191: 3.3 | W191: 2.076581023 | Y191: 157.3 | Z191: 167.7 | AA191: 146.9 | AC191: 0.6 | AD191: 2.463580247 | AE191: 0.5660493827 | AJ191: 2.211920525
M192: 15歳6ヶ月 | N192: 15.501 | P192: 168.6 | Q192: 180.4 | R192: 156.8 | T192: 15.501 | V192: 3.1 | W192: 1.896106396 | Y192: 157.3 | Z192: 167.7 | AA192: 146.9 | AC192: 0.5 | AD192: 2.3 | AE192: 0.5 | AJ192: 2.068
M193: 15歳7ヶ月 | N193: 15.58433333 | P193: 168.7 | Q193: 180.5 | R193: 156.9 | T193: 15.58433333 | V193: 2.9 | W193: 1.80070475 | Y193: 157.3 | Z193: 167.7 | AA193: 146.9 | AC193: 0.5 | AD193: 2.161111111 | AE193: 0.4611111111 | AJ193: 1.954121142
M194: 15歳8ヶ月 | N194: 15.66766667 | P194: 168.9 | Q194: 180.7 | R194: 157.1 | T194: 15.66766667 | V194: 2.9 | W194: 1.722099925 | Y194: 157.4 | Z194: 167.8 | AA194: 147 | AC194: 0.5 | AD194: 2.027777778 | AE194: 0.4277777778 | AJ194: 1.844302469
M195: 15歳9ヶ月 | N195: 15.751 | P195: 169 | Q195: 180.8 | R195: 157.2 | T195: 15.751 | V195: 2.7 | W195: 1.651371677 | Y195: 157.4 | Z195: 167.8 | AA195: 147 | AC195: 0.5 | AD195: 1.9 | AE195: 0.4 | AJ195: 1.7383125
M196: 15歳10ヶ月 | N196: 15.83433333 | P196: 169.1 | Q196: 180.9 | R196: 157.3 | T196: 15.83433333 | V196: 2.6 | W196: 1.586593138 | Y196: 157.4 | Z196: 167.8 | AA196: 147 | AC196: 0.4 | AD196: 1.79691358 | AE196: 0.399382716 | AJ196: 1.635919753
M197: 15歳11ヶ月 | N197: 15.91766667 | P197: 169.2 | Q197: 180.8 | R197: 157.6 | T197: 15.91766667 | V197: 2.4 | W197: 1.525837435 | Y197: 157.5 | Z197: 167.9 | AA197: 147.1 | AC197: 0.5 | AD197: 1.697530864 | AE197: 0.400617284 | AJ197: 1.536892747
M198: 16歳0ヶ月 | N198: 16.001 | P198: 169.4 | Q198: 181 | R198: 157.8 | T198: 16.001 | V198: 2.3 | W198: 1.467177698 | Y198: 157.5 | Z198: 167.9 | AA198: 147.1 | AC198: 0.4 | AD198: 1.6 | AE198: 0.4 | AJ198: 1.441
M199: =INT(N199)&"歳"&ROUND(MOD(N199*12,12),0)& "ヶ月" -> 16歳1ヶ月 | N199: 16.08433333 | P199: 169.5 | Q199: 181.1 | R199: 157.9 | T199: 16.08433333 | V199: 2.2 | W199: 1.394538055 | Y199: 157.5 | Z199: 167.9 | AA199: 147.1 | AC199: 0.4 | AD199: 1.5 | AE199: 0.3697530864 | AG199: =IF(O199="","",50+(O199-P199)/(Q199-P199)*20) ->  | AH199: =IF(AG199="","",AH$4+(AG199-50)/10*AG$4) ->  | AJ199: 1.365615741
M200: 16歳2ヶ月 | N200: =N199+1/12 -> 16.16766667 | P200: 169.6 | Q200: 181.2 | R200: 158 | T200: 16.16766667 | V200: 2 | W200: 1.321419709 | Y200: 157.6 | Z200: 168 | AA200: 147.2 | AC200: 0.5 | AD200: 1.4 | AE200: 0.3358024691 | AJ200: 1.29287037
... 47 more rows
